[Event "87th Spanish Championship 2022"]
[Site "Linares"]
[Date "2022.08.14"]
[Round "5.30"]
[White "Garcia Fernandez, Victor"]
[Black "Valmana Canto, Jaime"]
[Result "0-1"]
[ECO "B07"]
[WhiteElo "2158"]
[BlackElo "2406"]
[Annotator "TA"]
[PlyCount "154"]
[EventDate "2022.08.11"]
[EventType "swiss"]
[EventCountry "ESP"]
[SourceTitle "playchess.com"]
[Source "ChessBase"]
[SourceQuality "1"]
[TimeControl "5400+30"]

{[%evp 9,154,48,85,73,75,52,72,63,67,61,177,184,239,230,210,188,220,126,77,85,85,91,69,0,250,0,0,0,0,0,8,30,14,-77,97,96,95,42,106,58,62,58,66,70,82,75,59,51,41,0,35,-8,0,-76,-81,-72,-37,-41,-39,-154,-147,-193,-202,-198,-172,-289,-265,-278,-275,-260,-261,-461,-219,-274,-251,-211,-119,-119,-129,-125,-116,-120,-126,-116,-116,-116,-119,-126,-122,-418,-405,-384,-294,-454,-445,-445,-444,-378,-199,-199,-199,-199,-195,-444,-433,-393,-385,-924,-710,-1017,-973,-722,-974,-754,-778,-668,-647,-597,-713,-1416,-1372,-6655,-7399,-5189,-4614,-29973,-29974,-29974,-29975,-29975,-29976,-29983,-29984,-29984,-29984,-29987,-29988,-29991,-29992,-29992,-29993,-29993,-29994,-29994,-29995,-29995,-29996]} 1. d4 {[%emt 0:00:01]} d6 {[%emt 0:04:02]} 2. e4 {[%emt 0:00:08]} Nf6 {[%emt 0:01:46]} 3. Nc3 {[%emt 0:00:26]} Nbd7 {[%emt 0:00:39]} 4. f4 {[%emt 0:04:36]} e5 {[%emt 0:01:14]} 5. Nf3 {[%emt 0:01:27]} exf4 {[%emt 0:22:42]} 6. Bxf4 {[%emt 0:00:41] B07: Pirc Defence: Miscellaneous Systems.} Be7 {[%emt 0:00:06]} 7. Bd3 {[%emt 0:07:40]} O-O {[%emt 0:02:11] [#]} 8. Qd2 $146 {[%emt 0:10:26] White is better.} ({Predecessor:} 8. O-O h6 9. Qd2 Nh7 10. Rad1 Ndf6 11. e5 Nd7 12. Bxh6 g6 13. Bxf8 Qxf8 14. e6 {1-0 (36) Cortes,D-Sayas Torres,K Columbia 2009}) 8... c5 {[%emt 0:01:15]} 9. O-O-O {[%emt 0:09:53]} a6 {[%emt 0:03:05]} (9... Re8 $14) 10. e5 $1 $18 {[%emt 0:05:46]} dxe5 {[%emt 0:27:15]} (10... cxd4 $142 11. exd6 (11. exf6 dxc3 12. Bxh7+ Kh8 $11) 11... dxc3 12. Qxc3 Re8) 11. dxe5 {[%emt 0:00:38]} Nh5 {[%emt 0:00:08]} 12. Be3 {[%emt 0:02:18]} Nb6 {[%emt 0:00:09]} 13. g4 {[%emt 0:04:37]} (13. Rhg1 $18) 13... Bxg4 $16 {[%emt 0:00:28]} 14. Qg2 {[%emt 0:00:01]} Qc8 {[%emt 0:00:15]} 15. Rhg1 $1 {[%emt 0:06:32][%mdl 1024] White has strong compensation.} Bf5 {[%emt 0:04:07]} (15... f5 $2 16. h3 Bxf3 17. Qxf3 $18) 16. Ng5 {[%emt 0:13:54]} (16. Bg5 $14 Bxg5+ 17. Qxg5) 16... g6 $2 {[%emt 0:10:45]} (16... Bxd3 $11 {and Black stays safe.} 17. Rxd3 Qf5) 17. Nge4 $2 {[%emt 0:10:33]} (17. e6 $1 $18 Ng7 18. exf7+ Kh8 19. Bxf5 Nxf5 20. Nxh7 $1 {[%mdl 512]} (20. Qe4 Qc6 $11) 20... Rxf7 21. Qxg6 (21. Ng5 Bxg5 22. Qxg5 Qe6 $18) 21... Rxh7 22. Bg5 Bxg5+ 23. Rxg5) 17... Qe6 $11 {[%emt 0:01:56]} 18. Be2 {[%emt 0:04:10] Bxh5 is the strong threat.} Ng7 {[%emt 0:02:33]} 19. Bf4 {[%emt 0:01:04]} Rad8 {[%emt 0:05:51]} 20. Nd6 {[%emt 0:02:47]} f6 {[%emt 0:00:16]} 21. Nxb7 {[%emt 0:08:12]} (21. Qxb7 $11 fxe5 22. Qxb6 Rxd6 23. Rxd6 Qxd6 24. Qxd6 Bxd6 25. Bg3) 21... Rxd1+ $2 {[%emt 0:04:11] The board is on fire.} (21... Rd4 $1 $17 {[%cal Rd4f4] stays on course.} 22. Bh6 fxe5) 22. Rxd1 $16 {[%emt 0:00:01]} fxe5 {[%emt 0:00:09]} 23. Be3 {[%emt 0:00:09]} (23. Bg5 $16) 23... Qc8 {[%emt 0:05:49]} (23... Rc8 $14) 24. Nd6 {[%emt 0:01:15]} (24. Bxa6 $16 Qa8 25. Bb5) 24... Qc7 $14 {[%emt 0:00:06]} 25. Nc4 {[%emt 0:01:12]} Nxc4 {[%emt 0:00:17]} 26. Bxc4+ {[%emt 0:00:01]} Kh8 {[%emt 0:00:00]} 27. Nd5 {[%emt 0:00:42]} Qc6 {[%emt 0:00:24]} 28. Qd2 {[%emt 0:02:55]} Bd8 {[%emt 0:00:12]} 29. Qc3 {[%emt 0:00:31]} (29. Bh6 {looks sharper.} Bg4 30. Rg1 Bd7 31. Ne3) 29... Re8 {[%emt 0:01:16]} (29... Bg4 $5 {[%cal Rg4d1]} 30. Rg1 (30. Qxe5 $2 Bxd1 31. Kxd1 Rf5 $19) 30... Be6 $11) 30. Re1 {[%emt 0:01:41]} Be4 {[%emt 0:01:08]} 31. Qd2 {[%emt 0:00:31]} (31. Bh6 $1 $11 Bxd5 32. Rxe5) 31... Nf5 $1 $17 {[%emt 0:00:36]} 32. Nc3 {[%emt 0:00:25]} Nxe3 {[%emt 0:00:18]} (32... Bf3 $5 {[%cal Rd8h4]} 33. Bg5 Bxg5 34. Qxg5 e4 $17) 33. Qxe3 {[%emt 0:00:15]} Bf5 $36 {[%emt 0:00:14][%mdl 2048] Black has good play. This bishop pair is nice.} 34. Rd1 {[%emt 0:00:35]} (34. Ne4 $15) 34... Qg2 $1 {[%emt 0:00:43][%csl Gf5,LRc2,LRh2][%cal Rg2c2]} 35. Qe2 {[%emt 0:00:36] [#]} (35. Rd2 $17 {is a better defense.} Bg5 36. Rxg2 Bxe3+ 37. Kb1) 35... Qg5+ $1 $19 {[%emt 0:01:13]} 36. Qd2 {[%emt 0:00:48]} e4 {[%emt 0:00:02] Threatens to win with ...e3.} 37. Re1 {[%emt 0:00:44]} (37. Kb1 $142) 37... Qxd2+ {[%emt 0:00:50]} 38. Kxd2 {[%emt 0:00:01]} Bg5+ {[%emt 0:00:01]} 39. Ke2 {[%emt 0:00:26]} Rd8 {[%emt 0:01:04]} 40. Bd5 $2 {[%emt 0:00:30]} (40. Bxa6 Rd2+ 41. Kf1 Bh3+ 42. Kg1) 40... e3 {[%emt 0:00:13]} (40... Bg4+ $142 41. Kf1 Bd2 42. Rxe4 Bh3+ 43. Ke2 Bxc3) 41. Rg1 {[%emt 0:00:41]} Bf6 {[%emt 0:00:14]} 42. Be4 {[%emt 0:00:25]} Bxc3 {[%emt 0:00:51]} (42... Rd2+ $19 43. Kxe3 Rxh2) 43. Bxf5 $17 {[%emt 0:00:03]} gxf5 {[%emt 0:00:07]} 44. bxc3 $19 {[%emt 0:00:01][%mdl 4096] Endgame KR-KR} f4 {[%emt 0:00:11]} 45. Kf3 {[%emt 0:00:54]} Rd2 {[%emt 0:00:52][%csl LRc2,LRh2]} 46. Kxf4 {[%emt 0:00:24]} e2 {[%emt 0:00:01] Black is more active.} (46... Rxh2 $6 47. Kxe3 Rxc2 48. Kd3 Rxa2 49. Kc4 $11) 47. Re1 {[%emt 0:00:18]} Rxc2 {[%emt 0:00:01]} 48. a4 {[%emt 0:00:19]} Kg7 {[%emt 0:00:40]} ({Worse is} 48... Rxc3 49. Rxe2 Kg8 50. Kf5 $15) 49. Ke5 {[%emt 0:01:19][%mdl 8192]} (49. Ke3 $17 {keeps fighting.}) 49... Kg6 {[%emt 0:00:35]} 50. Kf4 {[%emt 0:01:23]} Kf6 {[%emt 0:00:49]} 51. Ke4 {[%emt 0:00:11]} (51. Ke3 $142 Rxc3+ 52. Kxe2) 51... c4 {[%emt 0:00:12]} 52. Ke3 {[%emt 0:00:37]} Kf5 {[%emt 0:01:36] Strongly threatening ...h5.} ({Not} 52... Rxc3+ $2 53. Kxe2 Rc2+ 54. Kd1 Rxh2 55. Re4 $19) 53. Rg1 {[%emt 0:00:42]} ({Wrong is} 53. Rxe2 $2 Rxe2+ 54. Kxe2 Kf4) 53... h5 {[%emt 0:00:41]} (53... Rxc3+ $142 54. Kxe2 Rc2+ 55. Ke3 Rxh2) 54. h4 {[%emt 0:00:26]} Rxc3+ {[%emt 0:00:27]} 55. Kxe2 {[%emt 0:00:01]} Ke4 {[%emt 0:00:38]} 56. Rg5 $2 {[%emt 0:00:17]} (56. Kd2 {was worth a try.} Kd4 57. Rg6) 56... Rc2+ {[%emt 0:00:28]} 57. Kd1 {[%emt 0:00:01] [#]} Ra2 {[%emt 0:00:09] aiming for ...Kd3.} 58. Kc1 $2 {[%emt 0:01:38]} (58. Rxh5 Rxa4 59. Kc2) 58... Kd3 {[%emt 0:00:38]} 59. Rg3+ {[%emt 0:00:36]} Kd4 {[%emt 0:00:08]} 60. Kb1 {[%emt 0:00:33]} Rxa4 {[%emt 0:00:04]} 61. Rg5 {[%emt 0:00:01]} Rb4+ {[%emt 0:00:02]} 62. Kc2 {[%emt 0:00:36]} Rb5 {[%emt 0:00:02] ( -> ...Rxg5)} 63. Rg6 {[%emt 0:00:14]} a5 {[%emt 0:00:57] Hoping for ...Re5.} 64. Ra6 Rf5 {[%emt 0:00:12] And now ...Rf2+ would win.} 65. Ra8 {[%emt 0:01:21]} Rf2+ {[%emt 0:00:06]} 66. Kb1 {[%emt 0:00:01]} Kd3 67. Rxa5 {[%emt 0:01:07]} Rf1+ {[%emt 0:01:27] Black mates.} 68. Ka2 {[%emt 0:00:01]} c3 {[%emt 0:00:08]} 69. Rd5+ {[%emt 0:01:02]} Kc4 {[%emt 0:00:03]} 70. Rd8 {[%emt 0:00:14]} c2 {[%emt 0:00:23]} 71. Rc8+ {[%emt 0:00:02]} Kd3 {[%emt 0:00:17]} 72. Kb2 {[%emt 0:00:17]} Rb1+ {[%emt 0:00:03]} 73. Ka2 {[%emt 0:00:01]} c1=Q {[%emt 0:00:14][%csl Gb1][%cal Rc1b2]} 74. Rd8+ {[%emt 0:00:08]} Ke2 {[%emt 0:00:14][%csl Gb1][%cal Rc1b2]} 75. Re8+ {[%emt 0:00:08]} Kf1 {[%emt 0:02:11][%csl Gb1][%cal Rc1b2]} 76. Rf8+ {[%emt 0:00:09]} Kg1 {[%emt 0:00:02][%csl Gb1][%cal Rc1b2]} 77. Rg8+ {[%emt 0:00:11]} Kh1 {[%emt 0:00:01] Black used his chance.  Weighted Error Value: White=0.59/Black=0.26 (precise)} 0-1

[Event "87th Spanish Championship 2022"]
[Site "Linares"]
[Date "2022.08.14"]
[Round "5.31"]
[White "Martinez Fernandez, Adrian"]
[Black "Diaz Mino, Daniel"]
[Result "1-0"]
[ECO "B54"]
[WhiteElo "2366"]
[BlackElo "2151"]
[Annotator "TA"]
[PlyCount "134"]
[EventDate "2022.08.11"]
[EventType "swiss"]
[EventCountry "ESP"]
[SourceTitle "playchess.com"]
[Source "ChessBase"]
[SourceQuality "1"]
[TimeControl "5400+30"]

{[%evp 10,134,5,7,39,6,37,20,33,27,34,31,85,48,48,43,93,102,94,81,79,58,61,44,81,90,80,70,70,65,129,130,151,108,122,117,117,87,87,83,75,102,184,46,93,66,69,42,106,111,99,103,108,72,77,75,78,78,78,77,78,78,62,73,73,74,58,53,81,73,79,73,79,85,437,437,684,684,684,684,721,721,720,714,714,714,714,714,714,714,707,707,707,700,691,684,680,665,665,483,29957,29957,12800,1241,11091,8511,29964,6087,29967,29967,5102,5106,29965,29971,29971,29973,29973,29973,0,0,0,0,0,0,29979,29980,29978]} 1. e4 {[%emt 0:00:02]} c5 {[%emt 0:00:03]} 2. Nf3 {[%emt 0:00:07]} d6 {[%emt 0:00:03]} 3. d4 {[%emt 0:00:07]} cxd4 {[%emt 0:00:03]} 4. Nxd4 {[%emt 0:00:07]} Nf6 {[%emt 0:00:05]} 5. f3 {[%emt 0:00:30]} e5 {[%emt 0:00:30]} 6. Nb3 {[%emt 0:00:00]} a5 {[%emt 0:11:08] B55: Sicilian: 2...d6 3 d4 cxd4 4 Nxd4 Nf6 5 f3.} 7. a4 {[%emt 0:09:30]} Be6 {[%emt 0:11:53]} 8. Nc3 {[%emt 0:00:30]} Be7 {[%emt 0:00:30] The position is equal.} 9. Bb5+ {[%emt 0:02:08] [#]} Nbd7 $146 {[%emt 0:01:28]} ({Predecessor:} 9... Nc6 10. Nd5 O-O 11. Be3 Bxd5 12. exd5 Nb4 13. c4 Nh5 14. O-O Bg5 15. Bf2 b6 {1-0 (77) Drozdowski,K (2448)-Erdogdu,M (2407) Chess.com INT 2022}) 10. Be3 {[%emt 0:03:06]} h5 (10... O-O $14) 11. Qd2 {[%emt 0:04:13]} O-O {[%emt 0:22:23]} 12. O-O {[%emt 0:00:30]} Nc5 {[%emt 0:03:06]} (12... Nb6 $14) 13. Nxc5 $16 {[%emt 0:06:28]} dxc5 {[%emt 0:00:30]} 14. Qf2 {[%emt 0:07:21]} Qc7 {[%emt 0:14:45]} 15. Nb1 {[%emt 0:00:30][%cal Bc3b1,Bb1a3,Ba3b5][%mdl 32]} Rad8 {[%emt 0:00:30]} 16. Na3 {[%emt 0:06:17]} b6 {[%emt 0:01:57]} 17. Bc4 {[%emt 0:03:20]} Bd7 {[%emt 0:00:49]} 18. b3 Bc6 {[%emt 0:00:53]} 19. Nb5 {[%emt 0:10:29]} Qb7 {[%emt 0:21:22]} (19... Bxb5 $14 20. Bxb5 Ne8) 20. Qg3 {[%emt 0:07:38]} Nh7 21. Rad1 {aiming for Bh6.} Bxb5 {[%emt 0:02:13]} 22. axb5 {[%emt 0:00:52]} Bf6 23. Qg6 {[%emt 0:06:52]} h4 {[%emt 0:00:58]} 24. Qh5 {[%emt 0:00:06] White is much more active. The black rooks are badly placed.} Qe7 {[%emt 0:00:46]} 25. Bd5 {[%emt 0:00:30]} Bg5 {[%emt 0:04:30]} (25... Ng5 $16) 26. Bf2 {[%emt 0:05:15]} (26. Bxg5 $1 $18 Nxg5 27. f4) 26... Qf6 {[%emt 0:00:39]} (26... Rd6 $14) 27. Rd3 {[%emt 0:01:07]} g6 {[%emt 0:01:14]} 28. Qg4 {[%emt 0:00:21] Strongly threatening g3.} Qf4 {[%emt 0:00:01]} (28... Kg7 $14) 29. Qxf4 {[%emt 0:01:15]} exf4 {[%emt 0:00:01]} 30. Rfd1 {[%emt 0:00:45]} Kg7 {[%emt 0:00:19]} 31. c3 {[%emt 0:04:47][%cal Ob3b4]} Bf6 {[%emt 0:00:30]} 32. b4 {[%emt 0:01:47]} axb4 {[%emt 0:00:30]} 33. cxb4 {[%emt 0:00:02]} cxb4 {[%emt 0:00:09]} 34. Bxb6 {[%emt 0:01:26]} Rb8 {[%emt 0:00:01]} 35. Bc5 {[%emt 0:00:09][%csl LRb4,LRf8]} Rfc8 {[%emt 0:00:05]} 36. Bc6 $36 {[%emt 0:02:09][%mdl 2048] Keeping Black busy. This bishop pair is nice.} Rxb5 {[%emt 0:00:47]} 37. Bxb5 {[%emt 0:00:05]} Rxc5 {[%emt 0:00:01]} 38. Ba4 {[%emt 0:02:14]} Ng5 {[%emt 0:01:04]} 39. Bb3 {[%emt 0:01:01]} Ra5 {[%emt 0:02:54]} 40. h3 {[%emt 0:01:39]} Ra3 {[%emt 0:00:29]} 41. Kf1 {[%emt 0:01:06]} Ne6 $2 {[%emt 0:00:30][%mdl 8192]} (41... Bc3 $16 {is more resistant.} 42. Bc4 Kh6) 42. Bxe6 $18 {[%emt 0:00:59]} fxe6 {[%emt 0:00:00] [#]} (42... Rxd3 $142 43. Rxd3 fxe6 44. Rd7+ Kg8) 43. Rxa3 $1 {[%emt 0:01:16]} bxa3 {[%emt 0:00:01][%mdl 4096] Endgame KR-KB} 44. Rd7+ {[%emt 0:00:00]} Kh6 {[%emt 0:01:17] ...a2 is the strong threat.} 45. Ra7 {[%emt 0:00:10]} Bb2 {[%emt 0:00:10]} 46. Ke2 {[%emt 0:04:40]} Kg5 {[%emt 0:00:01]} 47. Kd3 {[%emt 0:00:00]} Kf6 48. Kc4 {[%emt 0:00:13]} Ke5 {[%emt 0:01:17]} 49. Ra6 {[%emt 0:00:13]} Bc1 {[%emt 0:00:56]} 50. Kc5 {[%emt 0:00:14]} Bb2 {[%emt 0:00:24]} 51. Ra4 {[%emt 0:00:30]} Bc1 {[%emt 0:01:14]} 52. Kc6 {[%emt 0:00:04]} Bb2 {[%emt 0:00:49]} 53. Kd7 {[%emt 0:01:46]} Kf6 {[%emt 0:00:21]} 54. Ra5 {[%emt 0:05:45]} Bc1 (54... Kf7 $18 55. e5 Bc3 56. Rxa3 Bxe5) 55. Ra6 {[%emt 0:00:05]} Ke5 {[%emt 0:00:30]} 56. Rxe6+ {[%emt 0:00:30]} Kd4 {[%emt 0:00:08]} 57. Ra6 {[%emt 0:00:04]} Bb2 {[%emt 0:00:51]} 58. Kd6 {[%emt 0:00:34]} Ke3 {[%emt 0:00:14]} 59. e5 {[%emt 0:00:10]} Kf2 {[%emt 0:00:05]} 60. e6 {White threatens e7 and mate.} Bf6 61. e7 {[%emt 0:01:15]} Bxe7+ {[%emt 0:00:36]} 62. Kxe7 {[%emt 0:00:01]} Kxg2 {[%emt 0:00:12]} 63. Rxg6+ {[%emt 0:03:14]} Kxh3 {[%emt 0:02:40] KR-K3P} 64. Kf6 {[%emt 0:00:04]} a2 {[%emt 0:00:19]} 65. Rg1 {[%emt 0:00:01] Threatening mate with Ke5.} Kh2 {[%emt 0:00:20]} 66. Ra1 {[%emt 0:00:01] Ke5 would kill now.} Kg3 $2 {[%emt 0:00:15][%mdl 8192] [#]} (66... Kg2 $11) 67. Kg5 $1 {[%emt 0:00:58]} h3 {[%emt 0:01:09] Weighted Error Value: White=0.15 (very precise) /Black=0.93} 1-0

[Event "87th Spanish Championship 2022"]
[Site "Linares"]
[Date "2022.08.14"]
[Round "5.32"]
[White "Lin, Yingrui"]
[Black "Serrano Almendros, Angel"]
[Result "1-0"]
[ECO "A46"]
[WhiteElo "2314"]
[BlackElo "2049"]
[Annotator "TA"]
[PlyCount "49"]
[EventDate "2022.08.11"]
[EventType "swiss"]
[EventCountry "ESP"]
[SourceTitle "playchess.com"]
[Source "ChessBase"]
[SourceQuality "1"]
[TimeControl "5400+30"]

{[%evp 9,49,22,14,9,14,2,52,0,11,11,45,20,22,7,20,-18,-19,-49,-36,-40,-45,-40,-27,-42,-53,-84,325,329,333,331,339,332,887,867,989,937,904,883,900,892,856,735]} 1. d4 {[%emt 0:00:06]} Nf6 {[%emt 0:00:04]} 2. Nf3 {[%emt 0:00:09]} a6 {[%emt 0:00:20]} 3. g3 {[%emt 0:02:04]} b5 {[%emt 0:00:34]} 4. Bg2 {[%emt 0:00:13]} Bb7 {[%emt 0:00:13]} 5. O-O {[%emt 0:00:58]} e6 {[%emt 0:00:37]} 6. a4 {[%emt 0:09:28] A46: 1 d4 Nf6 2 Nf3 e6: Torre, London and Colle Systems.} c5 {[%emt 0:04:26]} 7. Bg5 {[%emt 0:01:39][%cal Oe2e4]} Be7 {[%emt 0:09:26] [#]} (7... b4 $11) 8. Nbd2 $146 {[%emt 0:19:13] White is slightly better.} ({Predecessor:} 8. axb5 axb5 9. Rxa8 Bxa8 10. c4 bxc4 11. Qa4 Bc6 12. Qxc4 Qb6 13. dxc5 Qxc5 14. Qxc5 Bxc5 {½-½ (62) Jungbluth,M (2028)-Draeger,T (2181) Dresden 2005}) 8... d6 {[%emt 0:19:47]} 9. c4 {[%emt 0:11:08]} cxd4 {[%emt 0:09:53]} 10. Nxd4 {[%emt 0:00:59]} Bxg2 {[%emt 0:00:08]} 11. Kxg2 {[%emt 0:00:06]} h6 {[%emt 0:00:13]} 12. Bxf6 {[%emt 0:08:39]} (12. Be3 $5 {[%cal Ra4b5]}) 12... Bxf6 {[%emt 0:00:23]} 13. N4f3 {[%emt 0:03:51]} bxc4 {[%emt 0:09:07] Threatens to win with ...d5.} 14. Nxc4 {[%emt 0:00:07][%cal Bd2c4,Bc4e5,Be5g4,Bg4f6,Bf6d5,Bd5b6][%mdl 32]} d5 {[%emt 0:00:04]} 15. Nce5 {[%emt 0:00:44]} Qd6 {[%emt 0:02:47]} 16. Ng4 {[%emt 0:01:01]} Bxb2 {[%emt 0:04:26] Hoping for ...h5.} 17. Ra2 {[%emt 0:08:12] [#]} Ba3 {[%emt 0:14:29][%mdl 8192] [#] This costs Black the game.} (17... h5 $1 $17 {[%cal Rh5g4] stays on course.} 18. Ne3 Bf6) 18. Qa1 $1 $18 {[%emt 0:01:13][%csl LRa3,LRg7]} Bc5 {[%emt 0:01:25]} 19. Qxg7 {[%emt 0:00:23]} Qf8 {[%emt 0:00:17]} 20. Nf6+ {[%emt 0:00:47]} Ke7 $2 {[%emt 0:00:55] [#]} (20... Kd8 21. Qg4 Qe7) 21. Nxd5+ $1 {[%emt 0:00:19][%mdl 512] Pair of Knights! White is clearly winning.} Kd7 {[%emt 0:03:40]} (21... exd5 22. Qe5+) 22. Qe5 {[%emt 0:01:19] White threatens Qc7+ and mate.} Bd6 {[%emt 0:00:54] Prevents Qc7+.} 23. Nb6+ {[%emt 0:01:07]} Ke7 {[%emt 0:00:11]} 24. Qd4 {[%emt 0:00:17]} Nc6 {[%emt 0:00:42]} 25. Qh4+ {[%emt 0:00:08] Weighted Error Value: White=0.19 (very precise) /Black=0.61} 1-0

[Event "87th Spanish Championship 2022"]
[Site "Linares"]
[Date "2022.08.14"]
[Round "5.33"]
[White "Garcia Escoda, Marc"]
[Black "Castellanos Gomez, Alejandro"]
[Result "1-0"]
[ECO "C06"]
[WhiteElo "2130"]
[BlackElo "2266"]
[Annotator "TA"]
[PlyCount "61"]
[EventDate "2022.08.11"]
[EventType "swiss"]
[EventCountry "ESP"]
[SourceTitle "playchess.com"]
[Source "ChessBase"]
[SourceQuality "1"]
[TimeControl "5400+30"]

{[%evp 26,61,43,5,50,46,41,38,60,62,69,39,60,62,72,52,63,72,112,108,85,127,192,123,127,130,372,367,2645,866,1146,1131,1740,1704,1558,1506,29985,3326]} 1. e4 {[%emt 0:00:01][%cal Be2e4,Be4e5][%mdl 32]} e6 {[%emt 0:00:06]} 2. d4 {[%emt 0:00:10]} d5 {[%emt 0:00:08]} 3. Nd2 {[%emt 0:00:12]} Nf6 {[%emt 0:00:10]} 4. Bd3 {[%emt 0:00:14]} c5 {[%emt 0:00:27]} 5. e5 {[%emt 0:00:04]} Nfd7 {[%emt 0:00:30]} 6. c3 {[%emt 0:00:11]} Nc6 {[%emt 0:00:22]} 7. Ne2 {[%emt 0:00:13]} cxd4 {[%emt 0:00:58]} 8. cxd4 {[%emt 0:00:08]} f6 {[%emt 0:00:18]} 9. exf6 {[%emt 0:00:25]} Nxf6 {[%emt 0:00:42]} 10. Nf3 {[%emt 0:00:20]} Bd6 {[%emt 0:00:29]} 11. O-O {[%emt 0:00:10]} O-O {[%emt 0:00:15]} 12. Bf4 {[%emt 0:00:08]} Bxf4 {[%emt 0:01:53]} 13. Nxf4 {[%emt 0:00:04]} Ne4 {[%emt 0:00:58]} 14. Qc1 {[%emt 0:00:11]} Qd6 {[%emt 0:14:49] C06: French Tarrasch: 3...Nf6 4 e5 Nfd7 5 Bd3 main lines.} 15. Ne2 {[%emt 0:05:13]} Bd7 {[%emt 0:17:39]} 16. Qe3 {[%emt 0:04:00]} Nf6 {[%emt 0:00:21] ...Ng4 is the strong threat. White is slightly better.} 17. Ne5 {[%emt 0:01:28] Prevents Ng4.} Rae8 {[%emt 0:02:48] [#]} 18. f4 $146 {[%emt 0:14:44]} ({Predecessor:} 18. a3 Re7 19. Rac1 Be8 20. Bb1 Nd7 21. f4 Ncxe5 22. dxe5 Qb6 23. Qxb6 Nxb6 24. Nd4 Nc4 25. Rf2 {½-½ (42) Halfhide,S (2119)-Willemsma,A (2067) Groningen 2015}) 18... Ne7 {[%emt 0:13:40]} 19. g4 {[%emt 0:15:23]} Bc6 {[%emt 0:00:17]} 20. Ng3 {[%emt 0:01:55]} Rd8 {[%emt 0:01:21]} 21. Rae1 {[%emt 0:09:44]} Rfe8 {[%emt 0:00:11]} 22. f5 {[%emt 0:09:02] White is much more active.} exf5 {[%emt 0:00:53]} 23. Bxf5 {[%emt 0:01:16]} ({Much worse is} 23. gxf5 $6 Bd7 $11) 23... Ng6 {[%emt 0:08:19] [#]} (23... Rf8 $16 {keeps fighting.}) 24. Bxg6 {[%emt 0:06:28]} (24. Qg5 $1 $18 Ne4 25. Bxe4 dxe4 26. Nf5 Rxe5 27. dxe5 Qc5+ 28. Rf2) 24... hxg6 $16 {[%emt 0:00:08] [#]} 25. Qd3 $1 {[%emt 0:03:40]} Qb4 $2 {[%emt 0:01:35] A mistake that costs the game.} (25... Ne4 $16) 26. a3 $18 {[%emt 0:03:45]} Qa5 {[%emt 0:15:13]} (26... Bb5) 27. b4 {[%emt 0:00:38]} (27. Qxg6 $142 Rxe5 28. Rxe5) 27... Qc7 {[%emt 0:00:39]} 28. Qxg6 {[%emt 0:01:02] aiming for Rxf6.} Rf8 {[%emt 0:00:04]} 29. Nf5 {[%emt 0:06:38] Pair of Knights!} Be8 {[%emt 0:00:05]} 30. Qg5 {[%emt 0:00:01]} Ne4 {[%emt 0:03:12]} 31. Ne7+ {[%emt 0:00:20] Weighted Error Value: White=0.14 (very precise) /Black=0.95} 1-0